bitfinex/quotes_SOLUSD_20240920
["timestamp","ask_amount","ask_price","bid_price","bid_amount"]
[1726855950991,6.8671,145.63,145.58,1.3735031]
[1726855950992,6.8672,145.62,145.58,6.8689]
[1726855951223,6.8672,145.62,145.57,6.99489]
[1726855951391,0.12549,145.64,145.56,16.2571]
[1726855951596,1.71702369,145.63,145.56,16.2571]
[1726855951801,1.71702369,145.63,145.52,16.4231]
[1726855952022,8.16282369,145.63,145.52,16.4231]
[1726855952397,6.4458,145.63,145.52,16.4231]
[1726855952614,6.4458,145.63,145.56,6.8696]
[1726855952821,6.8677,145.61,145.56,6.8696]
[1726855953024,6.8682,145.6,145.55,6.99579]
[1726855953524,6.8677,145.61,145.56,1.37363516]
[1726855953719,6.8677,145.61,145.55,0.12549]
[1726855953921,23.6128,145.63,145.55,0.12549]
[1726855954128,32.9083,145.66,145.59,6.8682]
[1726855954621,6.8667,145.63,145.58,0.12549]
[1726855954832,6.8671,145.62,145.58,6.8689]
[1726855955007,32.9083,145.66,145.58,6.869]
[1726855955330,6.8676,145.61,145.57,6.8693]
[1726855955630,6.8672,145.62,145.58,6.8689]
[1726855955997,6.8668,145.63,145.59,6.8684]
[1726855956201,6.8672,145.62,145.58,6.8687]
[1726855956750,8.58460901,145.61,145.57,6.8694]
[1726855957049,6.8681,145.6,145.56,6.8699]
[1726855957228,6.8686,145.59,145.55,6.8704]
[1726855958224,6.8686,145.59,145.53,23.776884]
[1726855958225,6.8691,145.58,145.54,6.8709]
[1726855958454,6.8685,145.6,145.55,6.8703]
[1726855958628,6.8677,145.61,145.56,1.37386707]
[1726855958833,6.8677,145.61,145.53,23.776884]
[1726855959242,6.8682,145.6,145.53,23.776884]
[1726855959549,6.4339,145.63,145.57,6.8693]
[1726855959752,6.8679,145.61,145.57,6.8693]
[1726855960059,6.4339,145.63,145.58,1.37372301]
[1726855960238,15.745,145.66,145.55,20.86772218]
[1726855960427,15.745,145.66,145.57,23.902374]
[1726855960632,6.8659,145.65,145.6,6.8676]
[1726855960851,6.8666,145.64,145.58,1.37336434]
[1726855961351,6.8658,145.65,145.61,6.8676]
[1726855961521,15.745,145.66,145.57,0.12549]
[1726855961724,15.745,145.66,145.58,0.12549]
[1726855961926,6.8657,145.65,145.61,6.8673]
[1726855962139,15.745,145.66,145.62,8.24031492]
[1726855962140,22.6104,145.66,145.62,8.24031492]
[1726855962450,6.4339,145.67,145.63,1.37320837]
[1726855962751,6.8644,145.68,145.6,0.25098]
[1726855962931,8.58128212,145.67,145.6,0.12549]
[1726855963139,6.865,145.67,145.6,0.12549]
[1726855963349,6.8653,145.66,145.59,0.12549]
[1726855964358,6.4339,145.71,145.61,0.25098]
[1726855964657,13.2968,145.71,145.63,24.027864]
[1726855964856,13.2968,145.71,145.64,1.37278025]
[1726855965351,6.4339,145.71,145.68,6.8643]
[1726855965560,7.1934783,145.72,145.67,6.8647]
[1726855966059,0.3309783,145.72,145.68,1.37254683]
[1726855966361,0.3309783,145.72,145.69,0.12549]
[1726855966561,0.3309783,145.72,145.71,0.12549]
[1726855966850,0.3309783,145.72,145.71,48.52446283]
[1726855967257,0.21331791,145.76,145.75,6.861]
[1726855967431,0.21331791,145.76,145.75,30.888864]
[1726855967837,0.21331791,145.76,145.71,36.87824218]
[1726855967838,0.21331791,145.76,145.71,16.2615]
[1726855968131,0.21331791,145.76,145.72,24.027864]
[1726855968654,0.21331791,145.76,145.72,0.12549]
[1726855969031,7.07391791,145.76,145.69,0.25098]
[1726855969356,7.07391791,145.76,145.68,0.12549]
[1726855969567,6.8611,145.75,145.67,16.2615]
[1726855969857,6.8615,145.74,145.67,16.2615]
[1726855970527,6.614,145.75,145.67,16.2615]
[1726855970735,13.4751,145.75,145.7,6.8632]
[1726855971123,6.614,145.75,145.71,1.3724107]
[1726855971345,6.614,145.75,145.7,6.8633]
[1726855971844,6.8624,145.72,145.67,6.8643]
[1726855972039,6.8624,145.72,145.63,16.3279]
[1726855972040,6.862,145.73,145.68,6.8643]
[1726855972543,6.614,145.75,145.69,1.37252682]
[1726855972757,13.4751,145.75,145.64,20.0]
[1726855972951,6.614,145.75,145.71,6.8625]
[1726855973153,6.614,145.75,145.71,6.8629]
[1726855973556,6.614,145.75,145.72,6.8624]
[1726855974149,0.21331791,145.76,145.73,6.8619]
[1726855974655,0.21331791,145.76,145.74,6.8614]
[1726855974873,0.21331791,145.76,145.67,44.027864]
[1726855975967,0.21331791,145.76,145.69,24.027864]
[1726855976160,0.21331791,145.76,145.75,6.861]
[1726855976655,0.21331791,145.76,145.75,6.98649]
[1726855977047,0.21331791,145.76,145.75,7.11198]
[1726855977265,0.21331791,145.76,145.75,6.98649]
[1726855977468,0.21331791,145.76,145.75,30.888864]
[1726855977772,0.21331791,145.76,145.7,20.0]
[1726855977950,0.21331791,145.76,145.72,0.12549]
[1726855978660,0.21331791,145.76,145.71,23.776884]
[1726855979275,6.8615,145.75,145.68,16.3279]
[1726855979654,6.861,145.75,145.69,1.37227631]
[1726855979844,6.861,145.75,145.66,32.92234769]
[1726855980048,6.861,145.75,145.7,6.8633]
[1726855980250,6.8616,145.74,145.71,1.37236034]
[1726855980465,6.8611,145.75,145.7,6.8633]
[1726855980681,6.8616,145.74,145.65,15.8935]
[1726855980845,6.8623,145.73,145.65,15.8935]
[1726855981049,6.862,145.73,145.66,1.37252735]
[1726855981256,6.8614,145.75,145.7,6.863]
[1726855981466,6.8614,145.75,145.71,1.3724207]
[1726855981870,22.08611791,145.76,145.72,6.862]
[1726855982074,22.08611791,145.76,145.66,32.92234769]
[1726855982276,22.08611791,145.76,145.72,6.862]
[1726855982452,6.27031791,145.76,145.74,6.8611]
[1726855982774,6.27031791,145.76,145.67,24.027864]
[1726855982775,0.21331791,145.76,145.75,1.37200399]
[1726855982968,0.21331791,145.76,145.71,24.027864]
[1726855983353,0.21331791,145.76,145.71,0.25098]
[1726855983880,0.21331791,145.76,145.73,24.027864]
[1726855984052,0.21331791,145.76,145.75,0.12549]
[1726855986768,0.21331791,145.76,145.73,0.12549]
[1726855987085,0.21331791,145.76,145.75,0.12549]
[1726855987289,0.21331791,145.76,145.75,24.027864]
[1726855987694,0.21331791,145.76,145.75,0.12549]
[1726855989075,0.21331791,145.76,145.71,15.8821]
[1726855989589,0.21331791,145.76,145.72,1.37198293]
[1726855989774,0.21331791,145.76,145.7,20.0]
[1726855989970,0.21331791,145.76,145.71,1.37209825]
[1726855990687,0.21331791,145.76,145.72,0.12549]
[1726855990887,0.21331791,145.76,145.73,1.37197469]
[1726855991299,0.21331791,145.76,145.74,23.776884]
[1726855991684,0.21331791,145.76,145.72,0.25098]
[1726855991685,0.21331791,145.76,145.72,0.12549]
[1726855991892,0.21331791,145.76,145.73,23.776884]
[1726855992076,0.21331791,145.76,145.74,1.37187147]
[1726855992281,0.21331791,145.76,145.73,23.776884]
[1726855992475,0.21331791,145.76,145.74,1.37197342]
[1726855993019,0.21331791,145.76,145.72,0.12549]
[1726855993681,0.21331791,145.76,145.74,0.12549]
[1726855993901,0.21331791,145.76,145.71,24.027864]
[1726855994482,0.21331791,145.76,145.71,23.776884]
[1726855994906,0.21331791,145.76,145.72,1.37211574]
[1726855995586,0.21331791,145.76,145.73,23.776884]
[1726855995785,0.21331791,145.76,145.74,1.49738657]
[1726855996499,0.21331791,145.76,145.74,0.12549]
[1726855996794,0.21331791,145.76,145.72,23.902374]
[1726855998501,0.21331791,145.76,145.72,0.12549]
[1726855998680,0.21331791,145.76,145.71,0.25098]
[1726855999602,0.21331791,145.76,145.73,0.12549]
[1726855999774,0.21331791,145.76,145.74,1.37191033]
[1726856000778,0.21331791,145.76,145.72,0.12549]
[1726856001802,0.21331791,145.76,145.71,20.68983222]
[1726856001803,0.21331791,145.76,145.71,0.25098]
[1726856002390,0.21331791,145.76,145.71,24.027864]
[1726856002591,0.21331791,145.76,145.72,1.37200625]
[1726856002792,0.21331791,145.76,145.73,24.027864]
[1726856003017,0.21331791,145.76,145.73,0.25098]
[1726856003315,0.21331791,145.76,145.73,0.12549]
[1726856004021,0.21331791,145.76,145.73,0.25098]
[1726856005243,0.21331791,145.76,145.73,0.12549]
[1726856006618,0.21331791,145.76,145.71,0.12549]
[1726856006827,0.21331791,145.76,145.71,24.027864]
[1726856007210,6.8606,145.76,145.71,23.902374]
[1726856007520,0.66665151,145.77,145.71,23.902374]
[1726856007521,7.52675151,145.77,145.71,23.902374]
[1726856010894,1.71514986,145.76,145.68,23.776884]
[1726856011095,6.8626,145.72,145.63,36.20784222]
[1726856012025,6.862,145.73,145.64,1.37257265]
[1726856012397,6.8624,145.72,145.68,6.8643]
[1726856012699,6.8624,145.72,145.69,1.37257286]
[1726856013538,6.1259,145.75,145.63,36.20784222]
[1726856013831,15.72545151,145.77,145.61,8.41311677]
[1726856013832,13.1761,145.69,145.65,6.8653]
[1726856014121,13.1761,145.69,145.64,1.37268568]
[1726856014122,13.1761,145.69,145.64,8.23878568]
[1726856014293,6.3123,145.69,145.64,1.37268568]
[1726856015125,6.3123,145.69,145.66,6.8652]
[1726856015298,6.3123,145.69,145.65,6.8657]
[1726856015733,6.3123,145.69,145.66,1.37284006]
[1726856016095,6.3123,145.69,145.61,20.56434222]
[1726856016096,13.1762,145.69,145.61,20.56434222]
[1726856016421,6.3123,145.69,145.63,44.46671622]
[1726856016631,6.3123,145.69,145.64,1.37269837]
[1726856016830,13.1762,145.69,145.64,6.8658]
[1726856017021,6.3123,145.69,145.63,6.8666]
[1726856017536,6.3123,145.69,145.58,20.73716742]
[1726856017537,16.87100786,145.68,145.58,0.1728252]
[1726856017739,15.1547,145.68,145.58,0.1728252]
[1726856017942,15.1547,145.68,145.61,6.8675]
[1726856018134,6.8653,145.66,145.62,8.24023563]
[1726856018323,22.0195,145.68,145.63,8.23989524]
[1726856018519,22.0195,145.68,145.63,6.8667]
[1726856018717,6.8649,145.67,145.63,6.8667]
[1726856019037,22.0191,145.68,145.6,23.902374]
[1726856019239,22.0191,145.68,145.63,6.8663]
[1726856019427,22.0191,145.68,145.64,6.866]
[1726856019829,15.1547,145.68,145.65,1.37303656]
[1726856020217,15.1547,145.68,145.64,6.8661]
[1726856020421,22.0191,145.68,145.6,20.81532222]
[1726856020838,22.0191,145.68,145.64,6.8661]
[1726856021034,15.1547,145.68,145.6,22.1883516]
[1726856021251,6.8649,145.67,145.63,6.8664]
[1726856022115,15.1547,145.68,145.64,8.23914897]
[1726856022425,15.1547,145.68,145.6,0.25098]
[1726856022426,6.8648,145.67,145.63,6.8665]
[1726856022624,6.8648,145.67,145.62,6.8671]
[1726856022928,6.8648,145.67,145.63,8.23974383]
[1726856023129,6.8648,145.67,145.63,6.8666]
[1726856024021,15.1547,145.68,145.64,8.239229]
[1726856024223,22.0191,145.68,145.63,6.8666]
[1726856024431,6.8649,145.67,145.63,6.8666]
[1726856026534,15.1547,145.68,145.64,6.866]
[1726856026736,22.0194,145.68,145.64,6.866]
[1726856027335,1.71630256,145.67,145.58,0.1728252]
[1726856027548,6.8665,145.64,145.6,6.8678]
[1726856027759,6.8659,145.65,145.6,6.8678]
[1726856027944,6.8659,145.65,145.61,6.8675]
[1726856028326,6.8659,145.65,145.58,0.1728252]
[1726856028327,6.8659,145.65,145.6,6.8679]
[1726856028745,6.8659,145.65,145.61,6.8675]
[1726856031355,6.8663,145.64,145.6,6.868]
[1726856031558,6.1016,145.62,145.58,0.1728252]
[1726856032253,6.1016,145.62,145.59,6.8685]
[1726856032470,12.9689,145.62,145.58,7.0416252]
[1726856032647,6.1016,145.62,145.58,0.1728252]
[1726856032957,6.1016,145.62,145.58,20.73716742]
[1726856033149,6.1016,145.62,145.59,1.3733585]
[1726856033528,6.1016,145.62,145.61,6.8676]
[1726856033958,6.1016,145.62,145.6,6.868]
[1726856034562,6.1016,145.62,145.61,8.24099021]
[1726856034853,6.1016,145.62,145.61,6.8676]
[1726856036836,6.1016,145.62,145.6,6.8679]
[1726856038362,6.1016,145.62,145.48,43.776884]
[1726856038657,12.9688,145.62,145.56,20.56434222]
[1726856039464,6.1016,145.62,145.56,20.56434222]
[1726856040548,6.8689,145.59,145.52,20.56434222]
[1726856040744,6.8681,145.6,145.52,20.56434222]
[1726856040944,6.8694,145.58,145.52,20.56434222]
[1726856041163,6.8689,145.59,145.52,20.56434222]
[1726856041544,6.8681,145.6,145.52,20.56434222]
[1726856041744,6.8681,145.6,145.53,1.37374256]
[1726856042547,6.8681,145.6,145.54,0.12549]
[1726856043857,6.8681,145.6,145.53,23.902374]
[1726856044574,16.542,145.61,145.55,0.12549]
[1726856044575,23.4096,145.61,145.55,0.12549]
[1726856044941,23.4096,145.61,145.56,1.37365]
[1726856045868,16.542,145.61,145.56,1.37365]
[1726856046053,6.1016,145.62,145.6,13.1852034]
[1726856046562,6.1016,145.62,145.58,13.1852034]
[1726856048059,12.9688,145.62,145.56,20.60425524]
[1726856048279,1.71692761,145.61,145.54,20.60425524]
[1726856048571,6.8681,145.6,145.54,20.60425524]
[1726856048781,1.71692761,145.61,145.54,20.60425524]
[1726856049083,1.71692761,145.61,145.52,20.60425524]
[1726856049566,6.8689,145.59,145.52,20.60425524]
[1726856050469,6.8683,145.6,145.53,0.12549]
[1726856050857,6.8686,145.59,145.53,0.12549]
[1726856053287,6.8692,145.58,145.53,0.12549]
[1726856053488,6.8687,145.59,145.53,0.12549]
[1726856053875,6.0081,145.57,145.47,103.52679563]
[1726856054075,6.8709,145.54,145.47,103.52679563]
[1726856054496,6.8706,145.55,145.47,103.52679563]
[1726856054992,16.2391,145.58,145.5,20.60425524]
[1726856054993,6.0081,145.58,145.5,20.60425524]
[1726856055192,6.0081,145.58,145.52,20.60425524]
[1726856056487,12.8772,145.58,145.52,20.60425524]
[1726856057394,6.0081,145.58,145.52,20.60425524]
[1726856057596,6.0081,145.58,145.53,1.37388766]
[1726856057810,6.0081,145.58,145.53,0.12549]
[1726856057970,6.0081,145.58,145.54,21.97809887]
[1726856059880,29.1145,145.62,145.55,0.12549]
[1726856060079,29.1145,145.62,145.56,1.37365496]
[1726856060286,6.8677,145.61,145.55,0.12549]
[1726856060675,29.1145,145.62,145.55,0.12549]
[1726856060876,29.1145,145.62,145.55,1.49914723]
[1726856061206,22.2472,145.62,145.55,0.12549]
[1726856061712,29.1144,145.62,145.55,0.12549]
[1726856062015,29.1144,145.62,145.56,20.60425524]
[1726856062396,22.2472,145.62,145.57,1.37359204]
[1726856062595,29.1145,145.62,145.57,1.37359204]
[1726856062908,29.1145,145.62,145.56,20.60425524]
[1726856063099,29.1145,145.62,145.57,0.12549]
[1726856063689,29.1145,145.62,145.56,20.60425524]
[1726856063894,29.1145,145.62,145.51,15.7536]
[1726856063895,6.8692,145.58,145.51,15.7536]
[1726856064215,6.8696,145.57,145.49,1.86624956]
[1726856064397,6.8696,145.57,145.51,20.60425524]
[1726856064710,6.87,145.56,145.51,20.60425524]
[1726856065101,6.8696,145.57,145.51,20.60425524]
[1726856065990,6.8709,145.54,145.49,20.60425524]
[1726856066203,6.8709,145.54,145.47,140.16325087]
[1726856066809,6.8706,145.55,145.47,140.16325087]
[1726856067320,6.8706,145.55,145.49,20.60425524]
[1726856067512,6.8713,145.54,145.49,20.60425524]
[1726856067715,6.8713,145.54,145.48,0.2703636]
[1726856068092,6.8706,145.55,145.49,1.37438941]
[1726856068290,29.3293,145.56,145.49,21.97864465]
[1726856068514,29.3293,145.56,145.51,20.60425524]
[1726856068820,22.4592,145.56,145.51,20.60425524]
[1726856069114,29.3292,145.56,145.51,20.60425524]
[1726856069297,22.4592,145.56,145.51,20.60425524]
[1726856069810,29.3295,145.56,145.49,20.60425524]
[1726856070011,8.58839364,145.55,145.49,20.60425524]
[1726856070207,6.871,145.54,145.49,20.60425524]
[1726856070389,6.8714,145.53,145.48,0.2703636]
[1726856070595,6.8715,145.53,145.48,0.2703636]
[1726856071403,6.872,145.52,145.48,0.2703636]
[1726856071607,6.8724,145.51,145.48,0.2703636]
[1726856071924,6.8728,145.5,145.48,0.2703636]
[1726856072100,6.3194,145.5,145.48,0.2703636]
[1726856072517,13.1922,145.5,145.48,0.2703636]
[1726856073700,6.3194,145.5,145.48,0.2703636]
[1726856076418,6.0361,145.54,145.48,0.2703636]
[1726856076616,6.0361,145.54,145.49,20.60425524]
[1726856076825,6.0361,145.54,145.48,0.2703636]
[1726856077009,6.8714,145.53,145.48,0.2703636]
[1726856078101,7.75406843,145.54,145.48,0.2703636]
[1726856078296,6.8719,145.52,145.48,0.2703636]
[1726856078525,6.8719,145.52,145.48,1.64492558]
[1726856079423,6.8715,145.53,145.48,1.64492558]
[1726856079729,12.9072,145.54,145.48,1.64492558]
[1726856080027,6.0361,145.54,145.48,1.64492558]
[1726856081014,6.0361,145.54,145.49,20.60425524]
[1726856081220,12.9071,145.54,145.49,20.60425524]
[1726856081616,12.9071,145.54,145.48,0.2703636]
[1726856081813,6.0361,145.54,145.49,20.72974524]
[1726856082124,6.0361,145.54,145.49,20.60425524]
[1726856082306,6.0361,145.54,145.48,0.2703636]
[1726856084035,12.9072,145.54,145.48,0.2703636]
[1726856084620,6.0361,145.54,145.48,1.64481582]
[1726856084823,6.0361,145.54,145.48,0.2703636]
[1726856085106,6.0361,145.54,145.49,21.97855809]
[1726856086229,6.0361,145.54,145.49,20.60425524]
[1726856088212,1.71785559,145.53,145.48,0.2703636]
[1726856088424,6.8717,145.53,145.48,0.2703636]
[1726856088724,6.8721,145.52,145.48,0.2703636]
[1726856088930,6.8723,145.51,145.48,0.2703636]
[1726856089443,6.8733,145.49,145.48,0.2703636]
[1726856089937,6.8729,145.5,145.48,0.2703636]
[1726856090313,8.59175928,145.49,145.48,0.2703636]
[1726856090508,14.67295928,145.49,145.48,0.2703636]
[1726856090905,12.9545,145.49,145.48,0.2703636]
[1726856091925,6.0812,145.49,145.48,0.2703636]
[1726856092343,7.79961137,145.49,145.48,0.2703636]
[1726856092532,14.67291137,145.49,145.48,0.2703636]
[1726856093725,14.79840137,145.49,145.48,0.2703636]
[1726856095145,38.70077537,145.49,145.48,0.2703636]
[1726856095367,36.982364,145.49,145.48,0.2703636]
[1726856095531,6.8747,145.46,145.45,0.11347289]
[1726856095854,8.59374829,145.46,145.45,0.11347289]
[1726856096355,6.8747,145.46,145.45,0.11347289]
[1726856098543,7.00019,145.46,145.45,0.11347289]
[1726856099030,8.71939465,145.46,145.45,0.11347289]
[1726856099630,30.777074,145.46,145.45,0.11347289]
[1726856099829,32.62187167,145.46,145.45,0.11347289]
[1726856100037,30.902564,145.46,145.45,0.11347289]
[1726856100754,6.8747,145.46,145.45,0.11347289]
[1726856100951,6.8745,145.47,145.45,0.11347289]
[1726856101158,6.8747,145.46,145.45,0.11347289]
[1726856101355,6.8743,145.47,145.45,0.11347289]
[1726856102129,6.8738,145.48,145.45,0.11347289]
[1726856102556,12.9546,145.49,145.45,0.11347289]
[1726856102758,6.0812,145.49,145.45,0.11347289]
[1726856103257,6.0812,145.49,145.45,1.48830687]
[1726856107355,8.5924058,145.48,145.45,0.11347289]
[1726856107557,12.9546,145.49,145.45,0.11347289]
[1726856108650,8.59262179,145.48,145.45,0.11347289]
[1726856108853,1.71872179,145.48,145.45,0.11347289]
[1726856109166,6.8742,145.48,145.45,0.11347289]
[1726856109365,6.0812,145.49,145.45,0.11347289]
[1726856109547,6.0205,145.52,145.45,0.11347289]
[1726856109746,12.8927,145.52,145.45,1.48823129]
[1726856110062,6.0205,145.52,145.46,20.60425524]
[1726856110272,12.8924,145.52,145.47,1.37471378]
[1726856110639,6.0205,145.52,145.47,1.37471378]
[1726856111653,23.4343,145.54,145.47,1.37471378]
[1726856111849,36.93310343,145.53,145.48,20.60425524]
[1726856112166,43.80460343,145.53,145.48,20.60425524]
[1726856112653,36.93310343,145.53,145.48,20.60425524]
[1726856113062,36.93310343,145.53,145.5,20.60425524]
[1726856113856,36.93310343,145.53,145.48,20.60425524]
[1726856114064,36.93310343,145.53,145.49,1.37430096]
[1726856114269,36.93310343,145.53,145.49,0.12549]
[1726856115766,36.93310343,145.53,145.5,19.8512873]
[1726856117045,36.93310343,145.53,145.52,19.8512873]
[1726856117247,0.2514006,145.59,145.53,16.02459]
[1726856117478,0.2514006,145.59,145.56,19.8512873]
[1726856117654,0.2514006,145.59,145.57,1.37373839]
[1726856117973,0.2514006,145.59,145.58,19.8512873]
[1726856119048,0.2514006,145.68,145.61,0.12549]
[1726856119253,0.2514006,145.68,145.62,19.8512873]
[1726856120182,0.2514006,145.68,145.62,33.07179875]
[1726856120683,0.2514006,145.68,145.64,23.776884]
[1726856120981,0.2514006,145.68,145.65,33.07157217]
[1726856122175,6.1165,145.72,145.66,23.902374]
[1726856122388,0.2442747,145.68,145.67,1.37263562]
[1726856122562,0.2442747,145.68,145.67,33.07136521]
[1726856122888,0.2442747,145.68,145.67,57.09922921]
[1726856123051,0.2590441,145.72,145.67,56.97373921]
[1726856124180,0.2590441,145.72,145.65,6.0865]
[1726856124181,6.8636,145.7,145.65,0.12549]
[1726856124369,6.8629,145.71,145.64,23.776884]
[1726856124679,1.71599736,145.7,145.63,31.94970959]
[1726856124887,0.2590441,145.72,145.68,31.69872959]
[1726856125061,0.2590441,145.72,145.68,47.88362959]
[1726856125409,0.2590441,145.72,145.71,31.69872959]
[1726856125592,0.2590441,145.72,145.71,33.07088817]
[1726856125881,0.2590441,145.72,145.71,55.72659359]
[1726856127287,0.21331791,145.76,145.72,23.902374]
[1726856127586,0.21331791,145.76,145.73,1.37207331]
[1726856127878,0.21331791,145.76,145.72,23.902374]
[1726856129287,0.21331791,145.76,145.73,33.07080527]
[1726856130986,0.21331791,145.76,145.73,31.69872959]
[1726856131682,0.21331791,145.76,145.7,31.69872959]
[1726856131877,1.92866239,145.76,145.7,31.69872959]
[1726856132072,8.78926239,145.76,145.7,31.69872959]
[1726856132392,8.78926239,145.76,145.72,31.69872959]
[1726856132393,0.21331791,145.76,145.72,31.69872959]
[1726856132601,0.21331791,145.76,145.73,1.37207451]
[1726856133102,0.21331791,145.76,145.75,55.47561359]
[1726856133273,0.2590441,145.77,145.76,0.12549]
[1726856133475,0.2590441,145.82,145.76,24.027864]
[1726856134173,0.2590441,145.82,145.76,23.902374]
[1726856134584,0.2590441,145.82,145.77,1.37169275]
[1726856135382,0.2590441,145.82,145.75,47.30542959]
[1726856135590,0.2590441,145.82,145.76,1.37176539]
[1726856135801,0.2590441,145.82,145.76,23.776884]
[1726856135994,0.2590441,145.82,145.77,0.25098]
[1726856136296,0.2590441,145.82,145.75,47.30542959]
[1726856136476,7.1171441,145.82,145.75,47.30542959]
[1726856136676,1.71483879,145.81,145.75,47.30542959]
[1726856137097,0.2590441,145.82,145.75,47.30542959]
[1726856137098,0.2590441,145.82,145.76,0.25098]
[1726856137879,0.2590441,145.82,145.76,24.027864]
[1726856138080,0.2590441,145.82,145.78,31.69872959]
[1726856138294,0.2590441,145.82,145.79,1.37147951]
[1726856138703,0.2590441,145.82,145.79,21.37147951]
[1726856138976,0.2590441,145.82,145.81,31.69872959]
[1726856139985,0.2590441,145.82,145.8,19.76633091]
[1726856141907,0.2590441,145.82,145.81,25.14828746]
[1726856142077,0.2590441,145.82,145.81,23.776884]
[1726856142705,0.2590441,145.82,145.81,23.902374]
[1726856143601,0.2590441,145.82,145.81,24.027864]
[1726856143985,0.2590441,145.82,145.76,20.0]
[1726856144189,0.2590441,145.82,145.81,19.76633091]
[1726856144501,0.1633954,145.85,145.81,19.76633091]
[1726856144701,0.1633954,145.85,145.76,20.0]
[1726856144702,0.1633954,145.85,145.84,19.76633091]
[1726856145080,0.1633954,145.85,145.82,19.76633091]
[1726856146486,0.1633954,145.85,145.76,22.32677671]
[1726856146487,0.1633954,145.85,145.8,19.76633091]
[1726856146980,0.1633954,145.85,145.82,19.76633091]
[1726856148017,0.1633954,145.85,145.8,19.76633091]
[1726856148179,1.87767082,145.85,145.78,19.76633091]
[1726856148389,6.8569,145.84,145.78,19.76633091]
[1726856148878,0.1633954,145.85,145.8,19.76633091]
[1726856149093,0.1633954,145.85,145.81,1.37130893]
[1726856150081,0.1633954,145.85,145.81,23.902374]
[1726856150379,0.1633954,145.85,145.8,19.76633091]
[1726856150584,0.1633954,145.85,145.77,0.12549]
[1726856150585,6.8568,145.84,145.76,20.0]
[1726856150820,6.8568,145.84,145.78,19.76633091]
[1726856150985,13.6280954,145.85,145.78,19.76633091]
[1726856151186,13.6280954,145.85,145.8,19.76633091]
[1726856151483,6.7717954,145.85,145.82,19.76633091]
[1726856152307,0.1633954,145.85,145.82,19.76633091]
[1726856152685,0.1633954,145.85,145.84,19.76633091]
[1726856155306,0.210126,145.87,145.85,23.902374]
[1726856155511,0.210126,145.87,145.86,45.03949203]
[1726856155686,0.210126,145.87,145.86,43.66870491]
[1726856156415,0.5103115,145.94,145.87,24.027864]
[1726856156713,0.5103115,145.94,145.9,19.76633091]
[1726856157206,0.5103115,145.94,145.91,23.902374]
[1726856157409,0.5103115,145.94,145.9,19.76633091]
[1726856157795,0.5103115,145.94,145.87,15.31969]
[1726856157796,0.5103115,145.94,145.88,19.76633091]
[1726856157996,9.07603389,145.94,145.88,19.76633091]
[1726856158195,2.22363389,145.94,145.86,19.76633091]
[1726856158398,6.8538,145.91,145.86,19.76633091]
[1726856158602,6.8531,145.92,145.86,19.76633091]
[1726856158801,8.56708535,145.91,145.86,19.76633091]
[1726856159016,6.8531,145.92,145.86,19.76633091]
[1726856159513,1.71358293,145.91,145.86,19.76633091]
[1726856159815,6.8545,145.89,145.84,19.76633091]
[1726856160193,6.8541,145.9,145.84,19.76633091]
[1726856160392,6.8544,145.89,145.84,19.76633091]
[1726856160614,1.71358293,145.91,145.81,19.76633091]
[1726856160615,6.2859,145.9,145.81,19.76633091]
[1726856161294,6.8549,145.89,145.81,19.76633091]
[1726856161495,6.8549,145.88,145.81,19.76633091]
[1726856161822,23.902374,145.89,145.79,16.1338]
[1726856162120,6.8559,145.86,145.79,19.76633091]
[1726856162291,6.8559,145.86,145.8,1.37145693]
[1726856162496,1.71426511,145.85,145.79,19.76633091]
[1726856162715,1.7143565,145.88,145.79,19.76633091]
[1726856162926,6.8564,145.85,145.79,19.76633091]
[1726856163127,1.71431957,145.84,145.79,19.76633091]
[1726856163617,0.12549,145.87,145.8,1.37149292]
[1726856163909,6.8549,145.88,145.8,1.37149292]
[1726856164915,6.8563,145.86,145.77,19.76633091]
[1726856165113,1.7143885,145.85,145.78,23.902374]
[1726856165922,8.5707885,145.85,145.77,19.76633091]
[1726856166109,8.37403025,145.84,145.75,35.90013091]
[1726856166415,6.8577,145.83,145.75,35.90013091]
[1726856166622,1.71480411,145.82,145.75,35.90013091]
[1726856167411,6.6594,145.84,145.75,35.90013091]
[1726856167606,13.5164,145.84,145.75,35.90013091]